fUSD/lending_fUSD_20250708
["ID","MTS","AMOUNT","RATE_DAILY","PERIOD"]
[370320002,1751956232937,-1667.6148041,0.00027107,16]
[370320004,1751956232947,-1000.0,0.0002719,2]
[370320006,1751956232956,-503.0,0.00027321,4]
[370320008,1751956232966,-152.85425706,0.00027534,2]
[370320010,1751956232975,-170.16,0.00027602,2]
[370320011,1751956232985,-18146.8532001,0.00027677,2]
[370320013,1751956232997,-2813.0,0.00027677,2]
[370320020,1751956233369,-530.55269997,0.00027677,2]
[370320021,1751956233381,-273.68698995,0.00027677,2]
[370320022,1751956233392,-648.00125069,0.00027677,2]
[370320023,1751956233404,-749.57078467,0.00027677,2]
[370320024,1751956233415,-137.78507462,0.00027677,2]
[370320025,1751956233425,-1000.0,0.00027729,2]
[370320026,1751956233434,-866.76427538,0.00027797,17]
[370320027,1751956233446,-800.85052872,0.00027797,17]
[370320028,1751956233455,-300.0,0.00027842,2]
[370320029,1751956233465,-207.4,0.00027842,2]
[370320030,1751956233475,-186.00947128,0.00027892,8]
[370320031,1751956233486,-736.51963827,0.00027892,8]
[370320032,1751956233498,-508.78336628,0.00027892,8]
[370320037,1751956238245,-1000.0,0.00027717,2]
[370320038,1751956238255,-1555.12817117,0.00027892,8]
[370320039,1751956238264,-463.56,0.00027897,2]
[370320040,1751956238274,-1480.63,0.00027897,2]
[370320041,1751956238283,-152.85425706,0.00028041,2]
[370320042,1751956238292,-1000.0,0.00028123,2]
[370320043,1751956238302,-458.0,0.00028129,7]
[370320044,1751956238311,-300.84,0.00028252,2]
[370320045,1751956238321,-458.0,0.00028349,2]
[370320046,1751956238330,-457.0,0.00028396,2]
[370320047,1751956238339,-1000.0,0.00028398,2]
[370320048,1751956238349,-600.0,0.000284,10]
[370320049,1751956238358,-305.94,0.00028447,2]
[370320050,1751956238367,-303.37,0.00028447,2]
[370320051,1751956238376,-300.51,0.00028447,2]
[370320052,1751956238386,-301.08,0.00028447,2]
[370320053,1751956238395,-303.84,0.00028447,2]
[370320055,1751956238405,-304.83,0.00028447,2]
[370320057,1751956238414,-301.78,0.00028447,2]
[370320059,1751956238423,-304.62,0.00028447,2]
[370320061,1751956238432,-302.92,0.00028447,2]
[370320063,1751956238442,-301.41,0.00028447,2]
[370320065,1751956238452,-302.11,0.00028447,2]
[370320067,1751956238462,-304.8,0.00028447,2]
[370320069,1751956238471,-302.25,0.00028447,2]
[370320071,1751956238482,-300.28,0.00028447,2]
[370320073,1751956238492,-300.03,0.00028447,2]
[370320075,1751956238502,-300.59,0.00028447,2]
[370320077,1751956238511,-300.83,0.00028447,2]
[370320079,1751956238520,-301.73,0.00028447,2]
[370320081,1751956238530,-302.23,0.00028447,2]
[370320083,1751956238539,-300.38,0.00028447,2]
[370320085,1751956238549,-304.51,0.00028447,2]
[370320087,1751956238558,-301.09,0.00028447,2]
[370320089,1751956238567,-302.4,0.00028447,2]
[370320091,1751956238576,-305.08,0.00028447,2]
[370320093,1751956238586,-304.02,0.00028447,2]
[370320095,1751956238595,-303.34,0.00028447,2]
[370320097,1751956238605,-305.48,0.00028447,2]
[370320099,1751956238614,-301.54,0.00028447,2]
[370320101,1751956238623,-304.07,0.00028447,2]
[370320103,1751956238632,-303.04,0.00028447,2]
[370320105,1751956238642,-303.36,0.00028447,2]
[370320107,1751956238651,-200.0,0.00028449,2]
[370320109,1751956238660,-155.99492245,0.00028467,2]
[370320111,1751956238671,-6087.83005609,0.00028478,2]
[370320113,1751956238683,-307.77725925,0.00028478,2]
[370320275,1751956240258,-1557.38467929,0.00028478,2]
[370320277,1751956240376,-600.08254284,0.00028478,2]
[370320278,1751956240386,-1667.6148041,0.00028486,19]
[370320279,1751956240396,-102.89324971,0.00028493,2]
[370320280,1751956240407,-2134.4,0.00028493,2]
[370320283,1751956240422,-6315.78128771,0.00028493,2]
[370320285,1751956240432,-8324.98170761,0.00028499,2]
[370320287,1751956240441,-1200.0,0.000285,10]
[370320289,1751956240451,-8553.07453742,0.00028508,2]
[370320291,1751956240460,-8324.98170755,0.00028513,2]
[370320293,1751956240470,-457.0,0.0002852,7]
[370320295,1751956240479,-8553.07453742,0.00028523,2]
[370320297,1751956240488,-8324.98170755,0.00028527,2]
[370320299,1751956240498,-457.0,0.00028535,2]
[370320301,1751956240507,-500.0,0.00028537,2]
[370320303,1751956240516,-500.0,0.00028537,2]
[370320305,1751956240525,-155.10920437,0.00028537,2]
[370320307,1751956240535,-500.0,0.00028537,2]
[370320309,1751956240545,-465.87781287,0.00028537,2]
[370320311,1751956240557,-34.12218713,0.00028537,2]
[370320313,1751956240568,-500.0,0.00028537,2]
[370320315,1751956240578,-500.0,0.00028537,2]
[370320317,1751956240587,-500.0,0.00028537,2]
[370320319,1751956240597,-500.0,0.00028537,2]
[370320321,1751956240607,-500.0,0.00028537,2]
[370320323,1751956240615,-500.0,0.00028537,2]
[370320325,1751956240625,-611.8895152,0.00028537,2]
[370320327,1751956240634,-500.0,0.00028537,2]
[370320329,1751956240644,-500.0,0.00028537,2]
[370320331,1751956240654,-400.02407079,0.00028537,2]
[370320335,1751956240686,-99.97592921,0.00028537,2]
[370320338,1751956240696,-503.91699398,0.00028537,2]
[370320340,1751956240705,-197.64672912,0.00028537,2]
[370320343,1751956240733,-302.35327088,0.00028537,2]
[370320346,1751956240742,-253.1098185,0.00028537,2]
[370320586,1751956246104,-246.8901815,0.00028537,2]
[370320587,1751956246114,-500.0,0.00028537,2]
[370320588,1751956246123,-500.0,0.00028537,2]
[370320589,1751956246133,-500.0,0.00028537,2]
[370320590,1751956246142,-426.90393341,0.00028537,2]
[370320591,1751956246152,-383.6888853,0.00028537,2]
[370320592,1751956246161,-488.05811671,0.00028537,2]
[370320593,1751956246170,-517.30136546,0.00028537,2]
[370320594,1751956246180,-500.0,0.00028537,2]
[370320595,1751956246189,-539.74595153,0.00028537,2]
[370320596,1751956246199,-500.0,0.00028537,2]
[370320597,1751956246208,-75.12422976,0.00028537,2]
[370320598,1751956246238,-533.59774935,0.00028537,2]
[370320599,1751956246247,-3830.76225093,0.00028538,2]
[370320600,1751956246259,-4722.31228649,0.00028538,2]
[370320601,1751956246268,-8324.98170755,0.0002854,2]
[370320602,1751956246277,-152.85425706,0.00028547,2]
[370320603,1751956246287,-8553.07453742,0.00028552,2]
[370320604,1751956246297,-8324.98170755,0.00028554,2]
[370320605,1751956246307,-460.0,0.00028567,3]
[370320606,1751956246317,-911.16,0.00028567,3]
[370320607,1751956246326,-460.0,0.00028567,3]
[370320608,1751956246335,-218.6176929,0.00028567,3]
[370320609,1751956246345,-927.67,0.00028567,3]
[370320610,1751956246354,-490.0,0.00028567,3]
[370320611,1751956246364,-460.0,0.00028567,3]
[370320612,1751956246373,-2724.93,0.00028567,3]
[370320613,1751956246383,-460.0,0.00028567,3]
[370320614,1751956246393,-460.0,0.00028567,3]
[370320615,1751956246403,-764.8,0.00028567,3]
[370320616,1751956246413,-460.0,0.00028567,3]
[370320617,1751956246422,-460.0,0.00028567,3]
[370320618,1751956246432,-460.0,0.00028567,3]
[370320619,1751956246441,-460.0,0.00028567,3]
[370320620,1751956246451,-703.12,0.00028567,3]
[370320621,1751956246463,-29023.96671862,0.00028567,2]
[370320622,1751956246473,-490.46986331,0.00028567,3]
[370320623,1751956246483,-190.03114643,0.00028567,5]
[370320624,1751956246493,-491.85855727,0.00028567,3]
[370320625,1751956246503,-1102.5,0.00028567,3]
[370320626,1751956246515,-460.0,0.00028567,3]
[370320627,1751956246524,-460.0,0.00028567,3]
[370320628,1751956246533,-1025.09,0.00028567,3]
[370320629,1751956246543,-460.0,0.00028567,2]
[370320630,1751956246553,-460.0,0.00028567,3]
[370320631,1751956246563,-460.0,0.00028567,3]
[370320632,1751956246572,-460.0,0.00028567,2]
[370320633,1751956246582,-751.15,0.00028567,3]
[370320634,1751956246591,-460.0,0.00028567,3]
[370320635,1751956246600,-460.0,0.00028567,3]
[370320636,1751956246609,-460.0,0.00028567,3]
[370320637,1751956246619,-482.43935766,0.00028567,2]
[370320638,1751956246629,-4769.64,0.00028567,3]
[370320639,1751956246638,-460.0,0.00028567,3]
[370320640,1751956246648,-460.0,0.00028567,3]
[370320641,1751956246657,-460.0,0.00028567,3]
[370320642,1751956246667,-460.0,0.00028567,3]
[370320643,1751956246677,-519.2,0.00028567,3]
[370320644,1751956246687,-460.0,0.00028567,3]
[370320645,1751956246696,-460.0,0.00028567,3]
[370320646,1751956246707,-460.0,0.00028567,3]
[370320647,1751956246718,-460.0,0.00028567,3]
[370320648,1751956246727,-1757.78,0.00028567,3]
[370320649,1751956246737,-460.0,0.00028567,3]
[370320650,1751956246747,-460.0,0.00028567,3]
[370320651,1751956246761,-460.0,0.00028567,3]
[370320652,1751956246772,-492.17162347,0.00028567,3]
[370320653,1751956246781,-460.0,0.00028567,3]
[370320654,1751956246793,-860.85,0.00028567,3]
[370320655,1751956246804,-1312.97,0.00028567,3]
[370320656,1751956246815,-460.0,0.00028567,3]
[370320657,1751956246825,-460.0,0.00028567,3]
[370320658,1751956246836,-703.81,0.00028567,3]
[370320659,1751956246846,-210.34477682,0.00028567,3]
[370320660,1751956246856,-460.0,0.00028567,3]
[370320661,1751956246865,-460.0,0.00028567,3]
[370320662,1751956246875,-460.0,0.00028567,3]
[370320663,1751956246885,-264.38860906,0.00028567,2]
[370320664,1751956246895,-252.78301214,0.00028567,2]
[370320665,1751956246907,-8300.29152528,0.00028567,2]
[370320666,1751956246917,-8324.98170755,0.00028568,2]
[370320667,1751956246927,-654.96570759,0.00028568,2]
[370320668,1751956246936,-339.65018541,0.00028568,2]
[370320669,1751956246946,-3183.24591646,0.00028568,2]
[370320670,1751956246956,-572.62642941,0.00028578,2]
[370320671,1751956246965,-8324.98170755,0.00028582,2]
[370320672,1751956246976,-8553.07453742,0.00028582,2]
[370320673,1751956246986,-192.30746509,0.00028588,2]
[370320674,1751956246996,-15487.7488628,0.00028588,2]
[370320675,1751956247005,-108414.24204,0.00028589,2]
[370320676,1751956247014,-248.294,0.00028593,20]
[370320677,1751956247023,-5722.695,0.00028593,20]
[370320678,1751956247033,-8324.98170755,0.00028595,2]
[370320679,1751956247041,-460.0,0.00028597,3]
[370320680,1751956247051,-494.57755806,0.00028597,3]
[370320681,1751956247060,-474.88120729,0.00028597,3]
[370320682,1751956247069,-460.0,0.00028597,3]
[370320683,1751956247079,-460.0,0.00028597,3]
[370320684,1751956247089,-4.51837841,0.00028597,3]
[370320685,1751956247759,-455.48162159,0.00028597,3]
[370320686,1751956247769,-217.31133037,0.00028597,3]
[370321182,1751956595975,1724.2083535,0.0003013,120]
[370321183,1751956705997,159.47,0.0002658,120]
[370321196,1751956847069,156.54,0.00013699,2]
[370321197,1751957120712,469.0942304,0.0003013,120]
[370321198,1751957190634,20019.88000033,0.0003013,120]
[370321199,1751957206116,460.0,0.0003013,120]
[370321200,1751957250854,460.0,0.0003013,120]
[370321203,1751957426720,1000.0,0.00030136,120]
[370321209,1751957432327,-150.0,0.000181,2]
[370321210,1751957432337,-150.0,0.0001859,2]
[370321211,1751957432348,-150.0,0.0001907,2]
[370321212,1751957432358,-166.690787,0.00019178,2]
[370321213,1751957432367,-150.0,0.0001956,2]
[370321214,1751957432378,-150.0,0.0002004,2]
[370321215,1751957432389,-156.54,0.00020187,2]
[370321216,1751957432399,-150.0,0.0002053,2]
[370321217,1751957432410,-150.0,0.0002101,2]
[370321218,1751957432419,-150.0,0.000215,2]
[370321219,1751957432429,-166.690787,0.00021643,2]
[370321220,1751957432438,-150.0,0.0002199,2]
[370321221,1751957432447,-150.0,0.0002247,2]
[370321222,1751957432457,-150.0,0.0002296,2]
[370321223,1751957432466,-150.0,0.0002344,2]
[370321224,1751957432476,-150.0,0.0002393,2]
[370321225,1751957432485,-346.0,0.00024082,2]
[370321226,1751957432495,-150.0,0.0002441,2]
[370321227,1751957432505,-281.97495639,0.00024537,2]
[370321228,1751957432514,-119.504984,0.00024537,2]
[370321229,1751957432526,-160.29992947,0.00024537,2]
[370321230,1751957432536,-1200.0,0.00024889,2]
[370321231,1751957432545,-2063.63733498,0.0002489,3]
[370321232,1751957432558,-500.0,0.0002489,3]
[370321233,1751957432582,-566.2174168,0.0002489,3]
[370321234,1751957432593,-262.75413044,0.0002489,3]
[370321235,1751957432629,-534.0,0.0002489,3]
[370321236,1751957432644,-587.489561,0.0002489,3]
[370321237,1751957432656,-485.90155678,0.0002489,3]
[370321238,1751957432666,-300.0,0.00024898,2]
[370321239,1751957432675,-150.0,0.000249,2]
[370321240,1751957432684,-1052.52154171,0.000249,12]
[370321241,1751957432694,-1052.52154142,0.00025279,12]
[370321242,1751957432704,-505.0,0.00025321,2]
[370321243,1751957432714,-150.0,0.0002539,2]
[370321244,1751957432724,-1000.0,0.00025471,2]
[370321245,1751957432733,-1052.52154142,0.00025659,13]
[370321246,1751957432742,-1000.0,0.00025753,7]
[370321247,1751957432752,-1000.0,0.00025753,7]
[370321248,1751957432762,-1000.0,0.00025753,7]
[370321249,1751957432772,-1000.0,0.00025753,7]
[370321250,1751957432782,-1000.0,0.00025753,7]
[370321251,1751957432791,-1000.0,0.00025753,7]
[370321252,1751957432800,-1000.0,0.00025753,7]
[370321253,1751957432810,-1000.0,0.00025753,7]
[370321262,1751957432820,-1000.0,0.00025753,7]
[370321263,1751957433077,-1000.0,0.00025753,7]
[370321264,1751957433087,-1000.0,0.00025753,7]
[370321265,1751957433098,-1000.0,0.00025753,7]
[370321266,1751957433108,-1000.0,0.00025753,7]
[370321267,1751957433118,-546.30379551,0.00025753,7]
[370321268,1751957433136,-453.69620449,0.00025753,7]
[370321269,1751957433145,-1000.0,0.00025753,7]
[370321270,1751957433155,-1000.0,0.00025753,7]
[370321271,1751957433164,-797.70379551,0.00025753,7]
[370321272,1751957433195,-202.29620449,0.00025753,7]
[370321273,1751957433204,-1000.0,0.00025753,7]
[370321274,1751957433214,-653.8628328,0.00025753,7]
[370321275,1751957433226,-346.1371672,0.00025753,7]
[370321276,1751957433235,-250.97529626,0.00025753,7]
[370321277,1751957433247,-749.02470374,0.00025753,7]
[370321278,1751957433256,-191.41461897,0.00025753,7]
[370321279,1751957433267,-808.58538103,0.00025753,7]
[370321280,1751957433277,-1000.0,0.00025753,7]
[370321281,1751957433286,-1000.0,0.00025753,7]
[370321282,1751957433296,-1000.0,0.00025753,7]
[370321283,1751957433305,-1000.0,0.00025753,7]
[370321284,1751957433315,-1000.0,0.00025753,7]
[370321285,1751957433325,-1000.0,0.00025753,7]
[370321286,1751957433335,-1000.0,0.00025753,7]
[370321287,1751957433344,-1000.0,0.00025753,7]
[370321288,1751957433354,-1000.0,0.00025753,7]
[370321289,1751957433363,-1000.0,0.00025753,7]
[370321290,1751957433372,-1000.0,0.00025753,7]
[370321291,1751957433384,-1000.0,0.00025753,7]
[370321293,1751957433394,-1000.0,0.00025753,7]
[370321295,1751957433404,-1000.0,0.00025753,7]
[370321297,1751957433413,-1000.0,0.00025753,7]
[370321298,1751957433422,-1000.0,0.00025753,7]
[370321299,1751957433433,-1000.0,0.00025753,7]
[370321300,1751957433443,-1000.0,0.00025753,7]
[370321301,1751957433453,-1000.0,0.00025753,7]
[370321302,1751957433468,-859.68729962,0.00025753,7]
[370321304,1751957433481,-140.31270038,0.00025753,7]
[370321305,1751957433491,-1000.0,0.00025753,7]
[370321306,1751957433501,-309.68729962,0.00025753,7]
[370321310,1751957438305,-682.98443556,0.00025753,7]
[370321311,1751957438599,-33.49561491,0.00025753,7]
[370321312,1751957438610,-210.34477682,0.00025753,7]
[370321313,1751957438620,-837.09214054,0.00025753,7]
[370321314,1751957438630,-200.0,0.00025789,2]
[370321315,1751957438639,-1254.55520338,0.00025825,2]
[370321316,1751957438687,-4469.34245051,0.00025825,2]
[370321317,1751957438698,-462.0,0.00025825,2]
[370321318,1751957438709,-5241.14192959,0.00025825,2]
[370321319,1751957440515,-581.45041652,0.00025825,2]
[370321320,1751957440525,-526.24,0.00025828,2]
[370321321,1751957440534,-170.16,0.00025854,2]
[370321322,1751957440544,-150.0,0.0002587,2]
[370321323,1751957440554,-23900.0,0.00025929,2]
[370321324,1751957440564,-1052.52154142,0.00026038,14]
[370321325,1751957440574,-14158.65,0.00026153,2]
[370321326,1751957440584,-168.36,0.00026235,2]
[370321327,1751957440593,-151.0,0.00026305,2]
[370321328,1751957440603,-151.0,0.00026305,2]
[370321329,1751957440613,-151.0,0.00026305,2]
[370321330,1751957440622,-151.0,0.00026305,2]
[370321331,1751957440631,-151.0,0.00026305,2]
[370321332,1751957440641,-151.0,0.00026305,2]
[370321333,1751957440651,-151.0,0.00026305,2]
[370321334,1751957440660,-151.0,0.00026305,2]
[370321335,1751957440670,-151.0,0.00026305,2]
[370321336,1751957440680,-151.0,0.00026305,2]
[370321337,1751957440689,-151.0,0.00026305,2]
[370321338,1751957440699,-151.0,0.00026305,2]
[370321339,1751957440708,-151.0,0.00026305,2]
[370321340,1751957440718,-151.0,0.00026305,2]
[370321341,1751957440728,-151.0,0.00026305,2]
[370321342,1751957440737,-487.87,0.00026346,2]
[370321343,1751957440747,-150.0,0.0002636,2]
[370321344,1751957440757,-165.13,0.00026393,2]
[370321345,1751957440766,-1052.52154142,0.00026417,15]
[370321346,1751957440776,-156.54,0.00026676,2]
[370321347,1751957440787,-1052.52154142,0.00026797,15]
[370321348,1751957440796,-150.0,0.0002684,2]
[370321349,1751957440806,-427.0,0.0002687,2]
[370321350,1751957440816,-505.0,0.00026897,4]
[370321351,1751957440826,-252.0,0.00026976,2]
[370321352,1751957440836,-427.0,0.00027112,7]
[370321353,1751957440846,-1052.52154142,0.00027176,16]
[370321354,1751957440855,-429.0,0.00027264,2]
[370321355,1751957440865,-1000.0,0.0002728,2]
[370321356,1751957440875,-150.0,0.0002733,2]
[370321357,1751957440884,-427.0,0.00027494,2]
[370321358,1751957440895,-210.34477682,0.00027498,2]
[370321359,1751957440904,-837.09214054,0.00027498,2]
[370321360,1751957440913,-250.0,0.00027525,2]
[370321361,1751957440923,-1052.52154142,0.00027555,17]
[370321362,1751957440933,-666.0,0.00027591,2]
[370321363,1751957440943,-170.16,0.00027793,2]
[370321364,1751957440953,-2279.117799,0.00027817,8]
[370321365,1751957440963,-300.0,0.00027842,2]
[370321366,1751957440974,-151.0,0.00027842,2]
[370321367,1751957440983,-500.0,0.00027842,2]
[370321368,1751957440993,-151.0,0.00027842,2]
[370321369,1751957441003,-191.80288011,0.00027842,2]
[370321370,1751957441013,-500.0,0.00027842,2]
[370321371,1751957441022,-207.4,0.00027842,2]
[370321372,1751957441031,-500.0,0.00027842,2]
[370321373,1751957441040,-151.0,0.00027842,2]
[370321374,1751957441049,-500.0,0.00027842,2]
[370321375,1751957441059,-500.0,0.00027842,2]
[370321376,1751957441068,-500.0,0.00027842,2]
[370321377,1751957441077,-500.0,0.00027842,2]
[370321378,1751957441086,-500.0,0.00027842,2]
[370321379,1751957441095,-500.0,0.00027842,2]
[370321380,1751957441105,-500.0,0.00027842,2]
[370321381,1751957441114,-500.0,0.00027842,2]
[370321382,1751957441123,-500.0,0.00027842,2]
[370321383,1751957441132,-500.0,0.00027842,2]
[370321384,1751957441141,-500.0,0.00027842,2]
[370321385,1751957441150,-427.0,0.0002787,2]
[370321386,1751957441159,-2000.0,0.000279,2]
[370321387,1751957441169,-441.03,0.000279,2]
[370321388,1751957441178,-150.0,0.000279,2]
[370321389,1751957441187,-357.41,0.0002791,2]
[370321390,1751957441197,-171.39,0.0002791,2]
[370321391,1751957441206,-303.37,0.0002791,2]
[370321392,1751957441215,-328.26,0.0002791,2]
[370321393,1751957441224,-164.17,0.0002791,2]
[370321394,1751957441233,-328.19,0.0002791,2]
[370321395,1751957441242,-812.39,0.00027922,2]
[370321396,1751957441252,-812.39,0.00027922,2]
[370321397,1751957441261,-1052.52154142,0.00027934,18]
[370321398,1751957441271,-150.82,0.00027999,2]
[370321399,1751957441280,-5548.0,0.00028099,2]
[370321400,1751957441290,-1000.0,0.00028145,2]
[370321401,1751957441299,-1000.0,0.00028167,2]
[370321402,1751957441308,-1000.0,0.00028181,2]
[370321403,1751957441318,-2146.78374801,0.00028271,2]
[370321404,1751957441327,-2146.78374793,0.00028296,2]
[370321405,1751957441336,-1000.0,0.00028297,2]
[370321406,1751957441345,-500.0,0.000283,10]
[370321407,1751957441354,-21393.26605755,0.000283,2]
[370321408,1751957441363,-150.0,0.00028308,2]
[370321409,1751957441372,-1052.52154142,0.00028314,18]
[370321410,1751957441381,-2146.78374793,0.00028321,2]
[370321411,1751957441395,-2146.78374793,0.00028347,2]
[370321412,1751957441405,-2500.0,0.00028349,2]
[370321413,1751957441414,-155.99492245,0.00028352,2]
[370321414,1751957441423,-2041.1761915,0.00028357,2]
[370321415,1751957441433,-226.19643142,0.00028357,2]
[370321416,1751957441442,-158.08137762,0.00028362,2]
[370321417,1751957441451,-150.82,0.00028363,2]
[370321418,1751957441462,-2146.78374793,0.00028372,2]
[370321419,1751957441472,-2041.17619146,0.00028373,2]
[370321420,1751957441482,-351.05154182,0.00028383,2]
[370321421,1751957441491,-2041.17619146,0.00028388,2]
[370321422,1751957441500,-273.272,0.00028393,2]
[370321423,1751957441510,-1000.0,0.00028393,2]
[370321424,1751957441519,-2146.78374793,0.00028397,2]
[370321425,1751957441761,-1000.0,0.00028399,2]
[370321426,1751957441776,-1100.0,0.000284,10]
[370321427,1751957441786,-2041.17619146,0.00028404,2]
[370321428,1751957441795,-200.0,0.00028415,2]
[370321429,1751957441804,-2041.17619146,0.0002842,2]
[370321430,1751957441814,-2146.78374793,0.00028422,2]
[370321431,1751957441824,-1000.0,0.00028427,2]
[370321432,1751957441834,-4578.156,0.00028428,19]
[370321433,1751957441843,-198.636,0.00028428,19]
[370321434,1751957441853,-200.0,0.00028432,2]
[370321435,1751957441862,-2041.17619146,0.00028435,2]
[370321436,1751957441872,-473.19414745,0.00028439,2]
[370321437,1751957441881,-441.8529484,0.00028439,2]
[370321438,1751957441891,-466.33461997,0.00028439,2]
[370321439,1751957441901,-440.15059341,0.00028439,2]
[370321440,1751957441910,-561.89745693,0.00028439,2]
[370321441,1751957441920,-1000.0,0.0002844,2]
[370321442,1751957441929,-2146.78374793,0.00028448,2]
[370321443,1751957441939,-200.0,0.00028448,2]
[370321444,1751957441948,-5000.0,0.00028449,2]
[370321445,1751957441958,-5000.0,0.00028449,3]
[370321446,1751957441967,-210.34477682,0.00028449,3]
[370321447,1751957441977,-837.09214054,0.00028449,3]
[370321448,1751957441986,-1277.43,0.00028449,3]
[370321449,1751957441995,-436.64380506,0.00028449,2]
[370321450,1751957442005,-460.0,0.0002845,3]
[370321451,1751957442014,-892.36,0.0002845,3]
[370321452,1751957442024,-460.0,0.0002845,3]
[370321453,1751957442034,-460.0,0.0002845,3]
[370321454,1751957442044,-772.94,0.0002845,3]
[370321455,1751957442053,-460.0,0.0002845,3]
[370321456,1751957442062,-460.0,0.0002845,3]
[370321457,1751957442072,-1237.89,0.0002845,3]
[370321458,1751957442081,-752.1,0.0002845,3]
[370321459,1751957442091,-460.0,0.0002845,3]
[370321460,1751957442100,-585.74,0.0002845,3]
[370321461,1751957442110,-581.65,0.0002845,3]
[370321462,1751957442119,-460.0,0.0002845,3]
[370321463,1751957442129,-692.99,0.0002845,3]
[370321464,1751957442138,-460.0,0.0002845,3]
[370321465,1751957442148,-1021.4,0.0002845,3]
[370321466,1751957442157,-1072.61,0.0002845,3]
[370321467,1751957442167,-1001.55,0.0002845,3]
[370321468,1751957442176,-460.0,0.0002845,3]
[370321469,1751957442185,-894.0,0.0002845,3]
[370321470,1751957442195,-458.90249786,0.0002845,3]
[370321471,1751957442205,-635.09,0.0002845,3]
[370321472,1751957442214,-1166.11,0.0002845,3]
[370321473,1751957442224,-460.0,0.0002845,3]
[370321474,1751957442233,-460.0,0.0002845,2]
[370321475,1751957442243,-508.55,0.0002845,3]
[370321476,1751957442252,-460.0,0.0002845,2]
[370321477,1751957442261,-460.0,0.0002845,3]
[370321478,1751957442270,-4604.28,0.0002845,3]
[370321479,1751957442280,-460.0,0.0002845,3]
[370321480,1751957442289,-183.97361821,0.0002845,2]
[370321481,1751957442299,-516.74,0.0002845,3]
[370321482,1751957442308,-176.2590727,0.0002845,2]
[370321483,1751957442317,-190.03114643,0.0002845,5]
[370321484,1751957442328,-493.32,0.0002845,3]
[370321485,1751957442338,-1703.71,0.0002845,3]
[370321486,1751957442347,-226.43345694,0.0002845,2]
[370321487,1751957442356,-844.15,0.0002845,3]
[370321488,1751957442366,-460.0,0.0002845,3]
[370321489,1751957442375,-460.0,0.0002845,3]
[370321490,1751957442387,-1664.15,0.0002845,3]
[370321491,1751957442396,-460.0,0.00028451,3]
[370321492,1751957442406,-719.85,0.00028451,3]
[370321493,1751957442416,-460.0,0.00028451,3]
[370321494,1751957442426,-179.65069762,0.00028451,3]
[370321495,1751957442436,-460.0,0.00028451,3]
[370321496,1751957442445,-460.0,0.00028451,3]
[370321497,1751957442454,-460.0,0.00028451,3]
[370321498,1751957442464,-460.0,0.00028451,3]
[370321499,1751957442474,-460.0,0.00028451,3]
[370321500,1751957442483,-460.0,0.00028451,3]
[370321501,1751957442493,-460.0,0.00028451,3]
[370321502,1751957442502,-461.57,0.00028451,3]
[370321503,1751957442512,-460.0,0.00028451,3]
[370321504,1751957442522,-460.0,0.00028451,3]
[370321505,1751957442531,-460.0,0.00028451,3]
[370321506,1751957442540,-460.0,0.00028451,3]
[370321507,1751957442550,-460.0,0.00028451,3]
[370321508,1751957442559,-460.0,0.00028451,3]
[370321509,1751957442568,-460.0,0.00028451,3]
[370321510,1751957442578,-509.9896856,0.00028451,3]
[370321511,1751957442587,-460.0,0.00028451,3]
[370321512,1751957442597,-460.0,0.00028451,3]